Workbook

Sheet 표지
A5: 2019학년도
A6: 타이뻬이한국학교회계 1차 추가경정 세입세출 예산
A19: 타 이 뻬 이 한 국 학 교

Sheet 총칙
A2: 예 산 총 칙
B4: 제 1 조 2019학년도 타이뻬이한국학교회계 세입ㆍ세출 예산 총액은 세입ㆍ세출 각각 18,492,445NTD로
B5: 하며, 세입ㆍ세출의 명세는 『세입ㆍ세출예산서』와 같다.
B7: 제2조 국가로부터 용도가 지정되어 교부된 경비 또는 수익자부담경비는 추가경정예산의 성립 전에
B8: 사용할 수 있으며, 이를 차기 추가경정예산에 반영한다.
B10: 제3조 동일 예산 관내의 항간 또는 목간에 예산의 과부족이 있는 경우에는 사학기관재무ㆍ회계규칙
B11: 제21조 제3항의 규정에 의하여 상호 전용할 수 있다.
B12: 단, 회계연도 경과 후에는 예산을 전용할 수 없으며, 업무추진비에 충당하기 위하여 다른
B13: 비목에서 전용할 수 없다.
B15: 제4조 다음의 경비에 부족이 생겼을 때에는 비목 상호간 또는 타 비목으로부터 이용할 수 있다.
B16: 단; 인건비 및 시설비의 예산은 다른 과목으로 이용할 수 없다.
B17: 1. 교원 및 직원 인건비, 연구비, 수당
B18: 2. 비정규직보수, 강사료
B19: 3. 세금, 공과금, 반환금

Sheet 세입
A1: 2019학년도 타이뻬이한국학교회계 세입․세출예산서
A2: (회계연도 2019년 3월 1일 ~ 2020년 2월 28일)
A3: □ 세입
A4: 【단위 : 현지화 NTD】
A5: 구 분 | C5: (Y-1)예산 | D5: (Y-2)결산 | E5: (Y)예산 | F5: 증감 | G5: 산출기초(단위: NTD) | J5: 비고
C6: (A) | D6: (B) | E6: (C) | F6: (C-A)
A7: 학부모부담수입 | C7: =C9+C12+C18 -> 5,185,833 | D7: 0 | E7: =E9+E12+E16+E18 -> 6,497,510 | F7: =E7-C7 -> 1,311,677
B9: - 입학금 | C9: 250,000 | E9: =I9 -> 450,000 | F9: =E9-C9 -> 200,000 | G9: 1. 입학금 | I9: =SUM(I10:I11) -> 450,000
G10: ㅇ유치원 30,000NTD×7명 | H10: = | I10: =30000*7 -> 210,000
G11: ㅇ초등학생 30,000NTD×8명 | H11: = | I11: =30000*8 -> 240,000
B12: - 수업료 | C12: 2,776,200 | E12: =I12 -> 3,735,000 | F12: =E12-C12 -> 958,800 | G12: 1. 수업료 | I12: =SUM(I13:I14) -> 3,735,000
G13: ㅇ유치원 40,000NTD×20명×2회 | H13: = | I13: =40000*20*2 -> 1,600,000
G14: ㅇ초등학생 30,500NTD×35명×2회 | H14: = | I14: =30500*35*2 -> 2,135,000
G15: 2. 지난년도 수업료 | I15: 0
B16: - 학교운영지원비 | C16: 0 | D16: 0 | E16: =I16 -> 0 | F16: =E16-C16 -> 0 | G16: 1. 학교운영지원비 | I16: 0
B18: - 수익자부담경비 | C18: 2,159,633 | E18: =I18+I23+I27+I31 -> 2,312,510 | F18: =E18-C18 -> 152,877 | G18: 1. 급식비 | I18: =SUM(I19:I22) -> 1,217,450
G19: ㅇ학생 110NTD×50명×181식 | H19: = | I19: =110*50*181 -> 995,500
G20: ㅇ교직원 110NTD×5명×181식 | H20: = | I20: =110*5*181 -> 99,550
G21: ㅇ요구르트 16NTD×20명×180일 | H21: = | I21: =16*20*180 -> 57,600
G22: ㅇ우유 18NTD×20명×180일 | H22: = | I22: =18*20*180 -> 64,800
G23: 2. 현장체험학습비 | I23: =SUM(I24:I26) -> 45,844
H24: = | I24: 0
H25: = | I25: 0
G26: ㅇ수학여행 11,461NTD×4명×1회 | H26: = | I26: =11461*4 -> 45,844
G27: 3. 방과후교육활동비 | I27: =SUM(I28:I30) -> 454,400
G28: ㅇ방과후교육활동비 2,640NTD×10명×16강좌 | H28: = | I28: 422,400
G29: ㅇ교재 및 재료비 400NTD×10명×8강좌 | H29: = | I29: 32,000
G31: 4. 기타수익자부담경비 | I31: =SUM(I32:I34) -> 594,816
G32: ㅇ통학버스비 314NTD×10명×182일 | H32: = | I32: =314*10*182 -> 571,480
G33: ㅇ졸업앨범(초등학생) 2,917NTD×4명 | H33: = | I33: =2917*4 -> 11,668
G34: ㅇ졸업앨범(유치원) 2,917NTD×4명 | H34: = | I34: =2917*4 -> 11,668
A35: 교육부지원금 | C35: =SUM(C37:C52) -> 9,733,400 | D35: 0 | E35: =SUM(E37,E39,E41,E46,E48,E44,E50) -> 10,238,266 | F35: =F37+F39+F41+F44+F46+F48+F50 -> 504,866
B37: - 현재채용교직원인건비 | C37: 4,898,332 | E37: =I37 -> 4,995,454 | F37: =E37-C37 -> 97,122 | G37: 1. 현재채용교직원인건비 | I37: =SUM(I38) -> 4,995,454
G38: ㅇ인건비 4,995,454NTD×1년 | H38: = | I38: =4995454 -> 4,995,454
B39: - 운영비 | C39: 4,254,155 | E39: =I39 -> 4,387,984 | F39: =E39-C39 -> 133,829 | G39: 1. 운영비 | I39: =SUM(I40) -> 4,387,984
G40: ㅇ운영비 4,387,984NTD×1년 | H40: = | I40: =4387984 -> 4,387,984
B41: - 임차료 | C41: 118,767 | E41: =I41 -> 43,167 | F41: =E41-C41 -> -75,600 | G41: 1. 임차료 | I41: =SUM(I42:I43) -> 43,167
G42: ㅇ나대지 43,167NTD(1년)×1회 | H42: = | I42: =43167*1 -> 43,167
H43: =
B44: - 저소득층자녀지원 | C44: 0 | D44: 0 | E44: =I44 -> 79,461 | F44: =E44-C44 -> 79,461 | G44: 1. 저소득층자녀지원 | I44: =I45 -> 79,461
G45: ㅇ저소득층자녀지원금 79,461NTD×1회 | I45: =79461 -> 79,461
B46: - 방과후학교지원 | C46: 37,146 | D46: 0 | E46: =I46 -> 0 | F46: =E46-C46 -> -37,146 | G46: 1. 방과후학교지원 | I46: =SUM(I47) -> 0
G47: ㅇ방과후학교운영비 | H47: = | I47: 0
B48: - 시설(대수선)비 | C48: 0 | E48: =I48 -> 0 | F48: =E48-C48 -> 0 | G48: 1. 시설(대수선)비 | I48: 0
B50: - 기타교육부지원금 | C50: 425,000 | D50: 0 | E50: =I50 -> 732,200 | F50: =E50-C50 -> 307,200 | G50: 1. 기타교육부지원 | I50: =SUM(I51:I52) -> 732,200
G51: ㅇ토요한글학교운영비(재단지원금) | H51: = | I51: 260,000
G52: ㅇ교수학습재료구입비 | H52: = | I52: =425000+47200 -> 472,200
A53: 자체수입 | C53: =SUM(C55+C59) -> 26,300 | D53: 0 | E53: =E55+E59 -> 68,000 | F53: =SUM(F55,F59) -> 41,700
B55: - 사용료및수수료 | C55: 20,300 | E55: =I55+I57 -> 62,000 | F55: =E55-C55 -> 41,700 | G55: 1.사용료 | I55: =SUM(I56) -> 60,000
G56: ㅇ 교실 및 강당 사용료 10,000NTD×6회 | H56: = | I56: =6*10000 -> 60,000
G57: 2. 수수료 | I57: =SUM(I58) -> 2,000
G58: ㅇ제증명발급 수수료 100NTD×3건+1,700 NTD | H58: = | I58: =100*3+1700 -> 2,000
B59: - 잡수입 | C59: 6,000 | E59: =I59+I61+I62 -> 6,000 | F59: =E59-C59 -> 0 | G59: 1. 이자수입 | I59: =SUM(I60) -> 6,000
G60: ㅇ예금이자 3,000NTD×2회 | H60: = | I60: =3000*2 -> 6,000
G61: 2. 지난년도 수입 | I61: 0
G62: 3. 기타잡수입 | I62: =SUM(I63:I63) -> 0
H63: =
A64: 전입금 및 지원금 | C64: =SUM(C66:C71) -> 613,589 | D64: 0 | E64: =E66+E68+E70 -> 0 | F64: 0
B66: - 학교발전기금전입금 | C66: 613,589 | D66: 0 | E66: =I66 -> 0 | F66: =E66-C66 -> -613,589 | G66: 1. 학교발전기금전입금 | I66: =I67 -> 0
I67: 0
B68: - 법인전입금 | C68: 0 | D68: 0 | E68: =I68 -> 0 | F68: =E68-C68 -> 0 | G68: 1. 법인전입금 | I68: 0
B70: - 기타지원금 | C70: 0 | D70: 0 | E70: =I70 -> 0 | F70: =E70-C70 -> 0 | G70: 1. 기타지원금 | I70: 0
A72: 기타수입 | C72: =SUM(C74:C83) -> 1,886,994 | D72: 0 | E72: =E74+E76+E80+E82 -> 1,688,669 | F72: =SUM(F74,F76,F80,F82) -> -198,325
B74: - 과년도 수입 | C74: 0 | D74: 0 | E74: =I74 -> 0 | F74: =E74-C74 -> 0 | G74: 1. 과년도수입 | I74: 0
B76: - 이월금 | C76: 1,886,994 | E76: =I76+I78+I79 -> 1,688,669 | F76: =E76-C76 -> -198,325 | G76: 1. 순세계잉여금 | I76: =I77 -> 1,688,669
G77: ㅇ 2018학년도 회계 잉여금 | H77: = | I77: 1,688,669
G78: 2. 계속비 | I78: 0
G79: 3. 이월사업비
B80: - 적립금 | C80: 0 | D80: 0 | E80: =I80 -> 0 | F80: =E80-C80 -> 0 | G80: 1. 적립금 | I80: 0
B82: - 환차익 | C82: 0 | D82: 0 | E82: =I82 -> 0 | F82: =E82-C82 -> 0 | G82: 1. 환차익 | I82: 0
A84: 합 계 | C84: =C72+C64+C53+C35+C7 -> 17,446,116 | D84: 0 | E84: =SUM(E72,E64,E53,E35,E7) -> 18,492,445 | F84: =E84-C84 -> 1,046,329
C87: 이월금에서 | E87: 신입생 입학금 45만원 뺴기 | G87: 김무진 수업료 31,000원 뺴기 | I87: 급식실 설치비 54만원 빼기 | L87: 총 1,049,800 빼기 | N87: 토요한글학교 수업료 이관할 금액 | Q87: 28800
C88: 이월금 | E88: 2,198,469 | G88: 1,148,669 이월금

Sheet 세출
A1: □ 세출
A2: 【단위 : 현지화(NTD, 괄호안 USD, 1USD=29NTD)】
A3: 구 분 | C3: (Y-1)예산 | D3: (Y-2)결산 | E3: (Y)예산 | F3: 증감 | G3: 산출기초(단위: NTDD) | J3: 비고
C4: (A) | D4: (B) | E4: (C) | F4: (C-A)
A5: 인건비 | C5: =SUM(C7,C23,C40) -> 8,324,300 | D5: 0 | E5: =SUM(E7,E23,E40) -> 9,165,380 | F5: =E5-C5 -> 841,080
B7: - 교원 | C7: 6,315,200 | E7: =SUM(I7,I10,I19,I21) -> 6,655,300 | F7: =E7-C7 -> 340,100 | G7: 1. 기본급 | I7: =SUM(I8:I9) -> 3,432,000
G8: ㅇ교사 45,000NTD×5명×12월 | H8: = | I8: =45000*5*12 -> 2,700,000
G9: ㅇ시간강사 500NTD×2명×183일×4시간 | H9: = | I9: =500*2*183*4 -> 732,000
G10: 2. 수당 | I10: =SUM(I11:I18) -> 2,520,000
G11: ㅇ담임수당 4,000NTD×5명×12월 | H11: = | I11: =4000*5*12 -> 240,000
G12: ㅇ부장수당 4,000NTD×1명×12월 | H12: = | I12: =4000*1*12 -> 48,000
G13: ㅇ복지수당 7,000NTD×5명×12월 | H13: = | I13: =7000*5*12 -> 420,000
G14: ㅇ주택수당 18,000NTD×2명×12월 | H14: = | I14: =18000*5*12 -> 1,080,000
G15: ㅇ부양가족 추가 주택수당 2,000NTD×3명×11월 | H15: = | I15: =2000*3*11 -> 66,000
G16: ㅇ경력수당 6,200NTD×5명×12월 | H16: = | I16: =6200*5*12 -> 372,000
G17: ㅇ보전수당 4,000NTD×5명×12월 | H17: = | I17: =4000*5*12 -> 240,000
G18: ㅇ시간외근무수당 300NTD×5명×3시간×12월 | H18: = | I18: =300*5*3*12 -> 54,000
G19: 3. 복리후생비 | I19: =SUM(I20) -> 270,000
G20: ㅇ명절휴가비 45,000NTD×5명×2회×60% | H20: = | I20: =45000*5*2*0.6 -> 270,000
G21: 4. 부담금 | I21: =SUM(I22) -> 433,300
G22: ㅇ건강보험기관부담금부담금 23,600NTD(7명)×12월+150,100NTD | H22: = | I22: =23600*12+150100 -> 433,300
B23: - 직원 및 계약교직원 | C23: 1,730,400 | E23: =SUM(I23,I28,I35,I37) -> 1,916,080 | F23: =E23-C23 -> 185,680 | G23: 1. 기본급 | I23: =SUM(I24:I27) -> 1,196,880
G24: ㅇ실장 45,000NTD×1명×12월 | H24: = | I24: =45000*12 -> 540,000
G25: ㅇ행정원 25,000NTD×1명×12월 | H25: = | I25: =25000*12 -> 300,000
G26: ㅇ유치원 교육전담사 170NTD×1명×8시간×183일 | H26: = | I26: =170*8*183 -> 248,880
G27: ㅇ유치원 보조원 150NTD×1명×4시간×180일 | H27: = | I27: =150*1*4*180 -> 108,000
G28: 2. 수당 | I28: =SUM(I29:I34) -> 547,600
G29: ㅇ직책수당(실장) 4,000NTD×1명×12월 | H29: = | I29: =4000*12 -> 48,000
G30: ㅇ경력수당(실장) 3,000NTD×1명×12월 | H30: = | I30: =3000*12 -> 36,000
G31: ㅇ복지수당 7,000NTD×2명×12월 | H31: = | I31: =7000*2*12 -> 168,000
G32: ㅇ부양가족 추가 주택수당 2,000NTD×1명×11월 | H32: = | I32: =2000*1*11 -> 22,000
G33: ㅇ주택수당(실장) 18,000NTD×1명×12월 | H33: = | I33: =18000*12 -> 216,000
G34: ㅇ시간외근무수당 300NTD×2명×8시간×12월 | H34: = | I34: =300*2*8*12 -> 57,600
G35: 3. 복리후생비 | I35: =SUM(I36:I36) -> 84,000
G36: ㅇ명절휴가비 35,000NTD×2명×2회×60% | H36: = | I36: =35000*2*2*0.6 -> 84,000
G37: 4. 부담금 | I37: =SUM(I38:I39) -> 87,600
G38: ㅇ건강보험기관부담금부담금 5,000NTD×12월 | H38: = | I38: =5000*12 -> 60,000
G39: ㅇ노동보험기관부담금 2,300NTD×12월 | H39: = | I39: =2300*12 -> 27,600
B40: - 퇴직적립금 | C40: 278,700 | E40: =SUM(I40,I43) -> 594,000 | F40: =E40-C40 -> 315,300 | G40: 1. 퇴직(적립)금 | I40: =SUM(I41:I42) -> 324,000
G41: ㅇ대만국적 교직원 퇴직금 100,000NTD×3명 | H41: = | I41: =100000*3 -> 300,000
G42: ㅇ퇴휴금(행정원) 2,000NTD×1명×12월 | H42: = | I42: =2000*1*12 -> 24,000
G43: 2.재외교육기여장려금 | I43: =SUM(I44:I44) -> 270,000
G44: ㅇ교사 90,000NTD×3명 | H44: = | I44: =90000*3 -> 270,000
A45: 학교운영비 | C45: =SUM(C47,C88,C149,C171) -> 4,646,331 | D45: 0 | E45: =SUM(E47,E88,E149,E171) -> 5,321,947 | F45: =E45-C45 -> 675,616 | H45: =
B47: - 일반운영비 | C47: 1,479,140 | E47: =SUM(I47,I69,I83,I85,I86) -> 1,490,962 | F47: =E47-C47 -> 11,822 | G47: 1. 교육지원부 운영 | I47: =SUM(I48:I68) -> 455,094
G48: ㅇ여비(국내) 200원×12명×2회×12월 | H48: = | I48: =200*12*2*12 -> 57,600
G49: ㅇ여비(국외출장) 20,000원×2명×2회+96,000NTD | H49: = | I49: =20000*2*2+96000 -> 176,000
G50: ㅇ교직원 채용경비 32,000원×1회 | H50: = | I50: =32000*1 -> 32,000
G51: ㅇ초등현장학습 인솔 교직원 중식 300NTD×8명×1회 | H51: = | I51: =300*8*4 -> 9,600
G52: ㅇ초등현장학습 인솔교직원 활동비 300NTD×8명×2회 | H52: = | I52: =300*8*2 -> 4,800
G53: ㅇ유치원현장학습 인솔교직원 중식 300NTD×4명×1회 | H53: = | I53: =300*4*1 -> 1,200
G54: ㅇ유치원현장학습 인솔교직원 활동비 300NTD×4명×1회 | H54: = | I54: =300*4*1 -> 1,200
G55: ㅇ수학여행인솔교사 출장비 10,000NTD | H55: = | I55: 10,000
G56: ㅇ수학여행인솔교사 숙박비 2,500NTD×2실×1박+1,000NTD | H56: = | I56: =5000+1000 -> 6,000
G57: ㅇ수학여행인솔교사 식비 300NTD×2명×11회 | H57: = | I57: =300*2*11 -> 6,600
G58: ㅇ수학여행인솔교사 입장료 2,300NTD×2명 | H58: = | I58: =2300*2 -> 4,600
G59: ㅇ수학여행인솔교사 교통비 9,500NTD×2명 | H59: = | I59: =9500*2 -> 19,000
G60: ㅇ수학여행인솔교사 여행자보험 1,472NTD×2명 | H60: = | I60: =1472*2 -> 2,944
G61: ㅇ수학여행인솔교사 예비비 100NTD×2명 | H61: = | I61: 200
G62: ㅇ거류비자 및 공작증 신청 4,325NTD×4명 | H62: = | I62: =4325*4 -> 17,300
G63: ㅇ교직원 귀임 및 부임항공료 9,000NTD×5명 | H63: = | I63: =9000*5 -> 45,000
G64: ㅇ홈페이지 도메인 사용료 750NTD×1년 | H64: = | I64: 750
G65: ㅇ예금잔액증명 발급수수료 500NTD×5회 | H65: = | I65: =500*5 -> 2,500
G66: ㅇ타행송금및환전수수료(납입금환불) 30NTD×50회 | H66: = | I66: =30*50 -> 1,500
G67: ㅇ행정장비 유지보수 6,300NTD×1회 | H67: = | I67: =6300 -> 6,300
G68: ㅇ행정장비 소모품 구입 10,000NTD×5회 | H68: = | I68: =10000*5 -> 50,000
G69: 2. 학교시설장비유지 | I69: =SUM(I70:I82) -> 890,200
G70: ㅇ전화 및 인터넷요금 5,500N*12월 | H70: = | I70: =5500*12 -> 66,000
G71: ㅇ전기요금 25,000NTD×12월 | H71: = | I71: =25000*12 -> 300,000
G72: ㅇ상하수도요금 500NTD×12월 | H72: = | I72: =500*12 -> 6,000
G73: ㅇ우편요금 150NTD×12월 | H73: = | I73: =150*12 -> 1,800
G74: ㅇ화장실 청소용역 12,000NTD×10월 | H74: = | I74: =12000*10 -> 120,000
G75: ㅇ건물 청소용역 15,000NTD×10월 | H75: = | I75: =15000*10 -> 150,000
G76: ㅇ화장실 소모품 및 청소용품 2,000NTD×4회 | H76: = | I76: =2000*4 -> 8,000
G77: ㅇ기계경비용역료 8,000NTD×12월 | H77: = | I77: =8000*12 -> 96,000
G78: ㅇ시설소모품구입 2,000NTD×3회 | H78: = | I78: =2000*3 -> 6,000
G79: ㅇ소방정밀점검 12,000NTD×1회 | H79: = | I79: =12000*1 -> 12,000
G80: ㅇ승강기안전관리용역 3,000NTD×12월 | H80: = | I80: =3000*12 -> 36,000
G81: ㅇ전기안전관리용역 3,200NTD×12월 | H81: = | I81: =3200*12 -> 38,400
G82: ㅇ소규모수선 50,000NTD×1회 | H82: = | I82: =50000 -> 50,000
G83: 3. 교직원 복지 및 역량강화 | I83: =SUM(I84) -> 84,000
G84: ㅇ교직원 자율연수비 1,000NTD×7명×12월 | H84: = | I84: =1000*7*12 -> 84,000
G85: 4. 업무용 차량운영
G86: 5. 임차료 | I86: =SUM(I87:I87) -> 61,668
G87: ㅇ나대지 61,668NTD×1년 | H87: = | I87: =61668 -> 61,668
B88: - 교수학습 활동비 | C88: 2,654,369 | E88: =SUM(I88,I94,I97,I99,I108,I117,I119,I128,I132,I135,I142,I147) -> 3,211,799 | F88: =E88-C88 -> 557,430 | G88: 1. 교과활동지원 | I88: =SUM(I89:I93) -> 297,100
G89: ㅇ학습준비물(교수학습자료지원금) 5,327NTD×40명+34,000NTD | H89: = | I89: =5327*40+20+34000 -> 247,100 | J89: 교수
G90: ㅇ사무용품 구입(교수학습자료지원금) 2,000NTD×5회 | H90: = | I90: =2000*5 -> 10,000 | J90: 교수
G91: ㅇ복사용지(교수학습자료지원금) 5,000NTD×2회 | H91: = | I91: =5000*2 -> 10,000 | J91: 교수
G92: ㅇ행정장비 소모품(교수학습자료지원금) 4,000NTD×6회 | H92: = | I92: 24,000 | J92: 교수
G93: ㅇ보결수당 150NTD×40시간 | H93: = | I93: =150*40 -> 6,000
G94: 2. 예체능교과활동(초등학교) | I94: =SUM(I95:I96) -> 117,000
G95: ㅇ태권도복 600NTD×15벌 | H95: = | I95: =600*15 -> 9,000
G96: ㅇ태권도 강사수당 900NTD×1명×3시간×40회 | H96: = | I96: =900*3*40 -> 108,000
G97: 3. 예체능교과활동(유치원) | I97: =SUM(I98:I98) -> 0
H98: =
G99: 4. 영어교과활동 | I99: =SUM(I100:I107) -> 1,406,200
G100: ㅇ강사수당(초등) 650NTD×2명×4시간×180일+650NTD×1명×2시간×180일 | H100: = | I100: =650*4*2*180+650*1*2*180 -> 1,170,000
G101: ㅇ강사수당(유치원) 650NTD×1명×1시간×180일 | H101: = | I101: =650*1*1*180 -> 117,000
G102: ㅇ부장수당 2,000NTD×1명×12월 | H102: = | I102: =2000*1*12 -> 24,000
G103: ㅇ영어강사 건강보험기관부담금 2,000NTD×12월 | H103: = | I103: =2000*12 -> 24,000
G104: ㅇ학습준비물 100NTD×45명×2회 | H104: = | I104: =100*45*2 -> 9,000
G105: ㅇ공책 10NTD×45부×6회 | H105: = | I105: =10*45*6 -> 2,700
G106: ㅇ교재 1,300NTD×45부 | H106: = | I106: =1300*45 -> 58,500
G107: ㅇ행사물품 1,000NTD×1회 | H107: = | I107: =1000*1 -> 1,000
G108: 5. 중국어교과활동 | I108: =SUM(I109:I116) -> 1,016,700
G109: ㅇ강사수당(초등) 600NTD×2명×4시간×143일+550NTD×1명×2시간×143일 | H109: = | I109: =600*2*4*143+600*1*2*143 -> 858,000
G110: ㅇ강사수당(유치원) 600NTD×1명×1시간×143일 | H110: = | I110: =600*1*143 -> 85,800
G111: ㅇ부장수당 2,000NTD×1명×12월 | H111: = | I111: =2000*1*12 -> 24,000
G112: ㅇ학습준비물 100NTD×45명×2회 | H112: = | I112: =100*45*2 -> 9,000
G113: ㅇ공책 10NTD×45부×6회 | H113: = | I113: =10*45*6 -> 2,700
G114: ㅇ교재 400NTD×90부 | H114: = | I114: =400*90 -> 36,000
G115: ㅇ행사물품 1,000NTD×1회 | H115: = | I115: =1000*1 -> 1,000
G116: ㅇ중국어능력평가 우편요금 50NTD×4회 | H116: = | I116: 200
G117: 6.유치원 교과활동 | I117: =SUM(I118:I118) -> 20,000
G118: ㅇ학습준비물 1,000NTD×20명 | H118: = | I118: =1000*20 -> 20,000
G119: 7. 자율활동(초등학교) | I119: =SUM(I120:I127) -> 51,000
G120: ㅇ학급운영비 200NTD×40명×2회 | H120: = | I120: =200*40*2 -> 16,000
G121: ㅇ환경정리 500NTD×6학급 | H121: = | I121: 3,000
G122: ㅇ학예회 무대장식 4,000NTD×1회 | H122: = | I122: =4000*1 -> 4,000
G123: ㅇ학예회 준비물품 400NTD×40명 | H123: = | I123: 16,000
G124: ㅇ체육대회 준비물품 200NTD×45개 | H124: = | I124: =200*45 -> 9,000
G125: ㅇ체육대회 풍선장식 2,000NTD×1회 | H125: = | I125: =2000*1 -> 2,000
G126: ㅇ체육대회 장소임대 1,000NTD×1회 | H126: = | I126: 1,000
G128: 8. 자율활동(유치원) | I128: =SUM(I129:I131) -> 12,500
G129: ㅇ학급운영비 400NTD×20명 | H129: = | I129: =400*20 -> 8,000
G130: ㅇ학예회경비 200NTD×20명 | H130: = | I130: =200*20 -> 4,000
G131: ㅇ환경정리 500NTD×1학급 | H131: = | I131: 500
A132: · | G132: 9. 교무업무운영 | I132: =SUM(I133:I134) -> 4,000
G133: ㅇ학교교육계획서 제작 400NTD×10부 | H133: = | I133: 4,000
G135: 10 입학식 및 졸업식(초등학교) | I135: =SUM(I136:I141) -> 11,701
G136: ㅇ입학식 선물 300NTD×13명 | H136: = | I136: =300*13 -> 3,900
G137: ㅇ졸업사진 촬영(교원) 400NTD×2명 | H137: = | I137: 800
G138: ㅇ졸업앨범 제작(교원,학교보관용) 667NTD×3부 | H138: = | I138: =667*3 -> 2,001
G139: ㅇ졸업식 장식 3,000NTD×1회 | H139: = | I139: 3,000
G140: ㅇ졸업식 안내장 발송 우편요금 200NTD×1회 | H140: = | I140: 200
G141: ㅇ졸업생 선물 600NTD×3개 | H141: = | I141: =600*3 -> 1,800
G142: 11. 입학식 및 졸업식(유치원) | I142: =SUM(I143:I146) -> 15,598
G143: ㅇ입학선물 300NTD×20명 | H143: = | I143: =300*20 -> 6,000
G144: ㅇ졸업사진 촬영(교원) 400NTD×3명 | H144: = | I144: =400*3 -> 1,200
G145: ㅇ졸업앨범 제작(교원,학교보관용) 666NTD×3부 | H145: = | I145: =666*3 -> 1,998
G146: ㅇ졸업선물 800NTD×8명 | H146: = | I146: =800*8 -> 6,400
G147: 12. 토요한글학교 운영(재외동포재단지원금) | I147: =SUM(I148:I148) -> 260,000
G148: ㅇ강사비 1,000NTD×4명×4시간×16주 | H148: = | I148: =1000*4*4*16.25 -> 260,000
A149: - 학생복리비 | C149: 488,822 | E149: =I149+I153+I158+I160+I166+I168+I170 -> 595,186 | F149: =E149-C149 -> 106,364 | G149: 1. 학생보건안전관리 | I149: =SUM(I150:I152) -> 39,150
G150: ㅇ학교안전공제회비(학생,교직원) 550NTD×53명 | H150: = | I150: =550*53 -> 29,150
G151: ㅇ응급학생 병원후송 500NTD×5회 | H151: = | I151: =500*5 -> 2,500
G152: ㅇ약품 1,500NTD×5회 | H152: = | I152: =1500*5 -> 7,500
G153: 2. 학교환경위생관리 | I153: =SUM(I154:I157) -> 39,800
G154: ㅇ정수기 필터교환 650NTD×2대×6회 | H154: = | I154: =650*2*6 -> 7,800
G155: ㅇ정수기 소독 3,500NTD×2대×1회 | H155: = | I155: =3500*2 -> 7,000
G156: ㅇ저수조 청소 5,000NTD×2회 | H156: = | I156: =5000*2 -> 10,000
G157: ㅇ교사 소독 5,000NTD×3회= | H157: = | I157: =5000*3 -> 15,000
G158: 3. 학교급식비 지원 | I158: =SUM(I159:I159) -> 0
H159: =
G160: 4. 통학차량 운영지원 | I160: =SUM(I161:I165) -> 409,775
G161: ㅇ차량 보험료 40,00NTD×2대×1년 | H161: = | I161: =40000*2 -> 80,000
G162: ㅇ차량 등록세 및 연료세 15,00NTD×2대×1년 | H162: = | I162: =15000*2 -> 30,000
G163: ㅇ주차요금 7,000NTD×4분기 | H163: = | I163: =7000*4 -> 28,000
G164: ㅇ통학버스 안전도우미 인건비 학교 지원금 | H164: = | I164: 131,375
G165: ㅇ차량 유류 15,600NTD×9월 | H165: = | I165: =15600*9 -> 140,400
G166: 5. 현장학습 지원 | I166: =SUM(I167) -> 27,000
G167: ㅇ현장학습 차량비 지원(기사인건비) 750NTD×1명×12회×3시간 | H167: = | I167: =750*1*12*3 -> 27,000
G168: 6. 저소득층자녀 학비지원(교육부지원금) | I168: =I169 -> 79,461
G169: ㅇ저소득층 자녀 학비 지원금 79,461NTD | H169: = | I169: 79,461
G170: 7. 기타 학생복지 지원 | I170: 0
B171: - 업무추진비 | C171: 24,000 | E171: =SUM(I171) -> 24,000 | F171: =E171-C171 -> 0 | G171: 1. 기관업무추진비 | I171: =SUM(I172:I173) -> 24,000
G172: ㅇ경조사비 1,500NTD×2회 | H172: = | I172: =1500*2 -> 3,000
G173: ㅇ교직원 간담회 350NTD×12명×5회 | H173: = | I173: =350*12*5 -> 21,000
A174: 자산취득비 | C174: 10,000 | D174: 0 | E174: =E176 -> 20,000 | F174: =E174-C174 -> 10,000 | H174: =
B176: - 자산취득비 | C176: 10,000 | E176: =I176 -> 20,000 | F176: =E176-C176 -> 10,000 | G176: 1. 교육환경개선 | I176: =SUM(I177) -> 20,000
G177: ㅇ 사무용 비품 5,000NTD×4회 | H177: = | I177: =5000*4 -> 20,000
A178: 시설(대수선)비 | C178: =SUM(C180) -> 1,906,994 | D178: 0 | E178: =SUM(E180) -> 1,672,608 | F178: =E178-C178 -> -234,386 | H178: =
B180: - 시설비 | C180: 1,906,994 | E180: =I180 -> 1,672,608 | F180: =E180-C180 -> -234,386 | G180: 1. 시설비 | I180: =SUM(I181:I182) -> 1,672,608
G181: ㅇ 급식실 설치 공사비(학교지원금) | H181: = | I181: 1,652,608
G182: ㅇ 환경개선 10,000NTD×2회 | H182: = | I182: =10000*2 -> 20,000
A183: 수익자부담경비 | C183: =SUM(C185,C199,C201,C212,C219) -> 2,558,491 | D183: 0 | E183: =SUM(E185,E199,E201,E212,E219) -> 2,312,510 | F183: =E183-C183 -> -245,981 | H183: =
B185: - 현장학습비 | C185: 102,154 | E185: =SUM(I185,I188,I191) -> 45,844 | F185: =E185-C185 -> -56,310 | G185: 1. 현장체험학습(초등학교) | I185: =SUM(I186:I187) -> 0
H186: = | I186: 0
H187: = | I187: 0
G188: 2. 현장체험학습(유치원) | I188: =SUM(I189:I190) -> 0
H189: = | I189: 0
H190: = | I190: 0
G191: 3. 수학여행 | I191: =SUM(I192:I198) -> 45,844
G192: ㅇ숙박비 750NTD×4명×4박 | H192: = | I192: =750*4*4 -> 12,000
G193: ㅇ식비 250NTD×3명×3회 | H193: = | I193: =250*4*4 -> 4,000
G194: ㅇ입장료 600NTD×3명 | H194: = | I194: =600*3 -> 1,800
G195: ㅇ항공료 4,584NTD×4명 | H195: = | I195: =4584*4 -> 18,336
G196: ㅇ교통비 1,500NTD×3명 | H196: = | I196: =1500*3 -> 4,500
G197: ㅇ보험료 1,226NTD×4명 | H197: = | I197: =1226*4 -> 4,904
G198: ㅇ예비비 304NTD×1회 | H198: = | I198: 304
B199: - 학생수련활동비 | C199: 0 | D199: 0 | E199: 0 | F199: =E199-C199 -> 0 | G199: 1. 수련활동비 | I199: 0
B201: - 학교급식비 | C201: 689,328 | E201: =SUM(I201,I203,I207,I205,I210) -> 1,217,450 | F201: =E201-C201 -> 528,122 | G201: 1. 급식 재료구입비 | I201: =SUM(I202) -> 0
H202: =
G203: 2. 급식종사원인건비 | I203: =SUM(I204:I204) -> 0
G205: 3. 운영비 | I205: =I206 -> 0
G207: 4. 유제품대금 | I207: =SUM(I208:I209) -> 122,400
G208: ㅇ 요구르트 16NTD×20개×180일 | H208: = | I208: =16*20*180 -> 57,600
G209: ㅇ 우유 18NTD×20개×180일 | H209: = | I209: =18*20*180 -> 64,800
G210: 5. 위탁급식 대금 | I210: =SUM(I211) -> 1,095,050
... 28 more rows
